bitfinex-derivatives/quotes_SOLF0:USTF0_20250421
["timestamp","ask_amount","ask_price","bid_price","bid_amount"]
[1745204482596,9.25269848,140.35,140.25,15.15119848]
[1745204482797,29.32,140.34,140.27,7.1292]
[1745204482996,0.05347711,140.31,140.29,0.05351213]
[1745204484499,7.18107711,140.31,140.29,0.05351213]
[1745204485695,0.05347711,140.31,140.29,0.05351213]
[1745204488897,0.05347711,140.31,140.3,7.1281]
[1745204489097,29.32,140.37,140.3,9.25269848]
[1745204489497,7.1259,140.35,140.3,16.38049848]
[1745204490200,7.1259,140.35,140.31,0.04769443]
[1745204491102,7.1259,140.35,140.31,7.17529443]
[1745204491302,7.1252,140.36,140.31,0.04769443]
[1745204491801,29.32,140.37,140.31,0.04769443]
[1745204492500,7.1269,140.33,140.31,0.04769443]
[1745204492701,36.4469,140.33,140.31,0.04769443]
[1745204493803,36.49493428,140.33,140.31,0.04769443]
[1745204495713,0.04803428,140.33,140.31,0.04769443]
[1745204498711,0.04803428,140.33,140.32,7.1271]
[1745204499107,29.36803428,140.33,140.31,0.04769443]
[1745204503414,0.04803428,140.33,140.31,0.04769443]
[1745204503616,0.04803428,140.33,140.31,9.30039291]
[1745204504116,0.04803428,140.33,140.31,0.04769443]
[1745204505419,0.04803428,140.33,140.32,7.1271]
[1745204507120,0.04803428,140.33,140.31,0.04769443]
[1745204507721,0.04803428,140.33,140.31,7.17519443]
[1745204510018,0.04803428,140.33,140.32,7.1271]
[1745204510226,0.04803428,140.33,140.32,16.37979848]
[1745204512123,0.04803428,140.33,140.32,7.1271]
[1745204516621,1.42439997,140.41,140.37,7.1245]
[1745204516821,1.42439997,140.41,140.35,9.25269848]
[1745204517025,1.42439997,140.41,140.35,7.1254]
[1745204517626,0.03442054,140.39,140.37,0.04667707]
[1745204518021,29.26,140.38,140.37,0.04667707]
[1745204520731,29.26,140.38,140.37,7.17117707]
[1745204523337,29.26,140.38,140.37,0.04667707]
[1745204524127,29.26,140.38,140.37,7.17117707]
[1745204527938,0.03442054,140.39,140.37,7.17117707]
[1745204527939,0.03442054,140.39,140.38,7.124]
[1745204528138,0.03442054,140.39,140.38,16.37669848]
[1745204528333,0.03442054,140.39,140.38,7.124]
[1745204528738,0.03442054,140.39,140.37,0.04667707]
[1745204529333,0.03442054,140.39,140.38,5.91003175]
[1745204530042,0.03442054,140.39,140.38,13.03403175]
[1745204530242,0.03442054,140.39,140.37,0.04667707]
[1745204533839,5.94445229,140.39,140.34,5.91003175]
[1745204534243,5.91003175,140.37,140.32,5.91003175]
[1745204534444,5.91003175,140.35,140.29,5.91003175]
[1745204534643,29.22,140.34,140.29,5.91003175]
[1745204534846,3.9404,140.36,140.33,5.91003175]
[1745204535042,0.04832928,140.33,140.3,0.05085078]
[1745204535245,29.22,140.37,140.32,5.91003175]
[1745204535442,0.05274416,140.33,140.32,13.03713175]
[1745204535639,36.3447,140.37,140.32,5.91003175]
[1745204535943,0.04674502,140.34,140.33,5.91003175]
[1745204536846,0.04674502,140.34,140.32,5.91003175]
[1745204537149,0.04674502,140.34,140.31,5.96462716]
[1745204537847,29.22,140.33,140.31,5.96462716]
[1745204538047,35.13003175,140.33,140.22,361.0]
[1745204538249,35.13003175,140.33,140.27,5.91003175]
[1745204538747,35.13003175,140.33,140.27,13.03953175]
[1745204538948,5.91003175,140.31,140.27,5.91003175]
[1745204539243,7.18229754,140.3,140.28,0.052468]
[1745204539450,29.22,140.29,140.28,0.052468]
[1745204541948,36.3486,140.29,140.28,0.052468]
[1745204542155,29.22,140.29,140.28,0.052468]
[1745204542546,36.3486,140.29,140.28,0.052468]
[1745204543048,29.22,140.29,140.28,0.052468]
[1745204544950,36.3486,140.29,140.28,0.052468]
[1745204545248,29.22,140.29,140.28,0.052468]
[1745204547455,38.47036945,140.29,140.21,9.25036945]
[1745204547647,7.1304,140.26,140.21,7.1325]
[1745204547846,29.24,140.25,140.19,9.25036945]
[1745204548043,7.1317,140.23,140.19,7.1336]
[1745204548244,29.24,140.25,140.18,5.8713]
[1745204548443,0.04950639,140.22,140.2,0.05380677]
[1745204548644,0.04950639,140.22,140.21,7.1326]
[1745204549355,0.04950639,140.22,140.2,7.18680677]
[1745204549554,0.04950639,140.22,140.2,0.05380677]
[1745204550449,29.24,140.21,140.2,0.05380677]
[1745204551956,29.24,140.21,140.2,7.18700677]
[1745204552156,0.04950639,140.22,140.2,9.30417622]
[1745204553256,0.04950639,140.22,140.21,7.1327]
[1745204557254,29.24,140.24,140.23,7.1317]
[1745204557559,29.24,140.27,140.23,9.25036945]
[1745204557759,29.24,140.27,140.25,9.25036945]
[1745204557960,29.24,140.27,140.26,7.13]
[1745204558159,29.24,140.27,140.25,9.25036945]
[1745204558359,29.24,140.27,140.25,16.38056945]
[1745204558660,29.29168381,140.27,140.25,16.43262002]
[1745204558860,29.29168381,140.27,140.25,7.18225057]
[1745204559160,29.29168381,140.27,140.25,0.05205057]
[1745204559763,29.29168381,140.27,140.25,7.18235057]
[1745204560859,29.29168381,140.27,140.26,7.1301]
[1745204561164,29.29168381,140.27,140.25,0.05205057]
[1745204563764,36.42138381,140.27,140.25,0.05205057]
[1745204564062,29.29168381,140.27,140.25,0.05205057]
[1745204564262,36.42148381,140.27,140.25,0.05205057]
[1745204564564,29.29168381,140.27,140.25,0.05205057]
[1745204565771,29.29168381,140.27,140.25,7.18265057]
[1745204566068,0.05168381,140.27,140.26,9.25036945]
[1745204566569,0.05168381,140.27,140.25,0.05205057]
[1745204566768,0.05168381,140.27,140.26,9.25036945]
[1745204567068,0.05168381,140.27,140.26,16.38046945]
[1745204567269,29.24,140.33,140.26,5.91594105]
[1745204567468,29.24,140.33,140.31,5.91594105]
[1745204567672,29.24,140.33,140.28,5.91594105]
[1745204568373,29.24,140.33,140.29,0.04741683]
[1745204568671,7.1750752,140.32,140.29,0.04741683]
[1745204571870,0.0476752,140.32,140.3,9.24663284]
[1745204572573,0.0476752,140.32,140.31,7.1276]
[1745204574173,0.0476752,140.32,140.3,9.24663284]
[1745204574376,0.0476752,140.32,140.3,7.1279]
[1745204574569,0.0476752,140.32,140.3,9.24663284]
[1745204575179,0.0476752,140.32,140.31,7.1276]
[1745204579479,38.0654,140.36,140.32,7.1269]
[1745204580280,7.1256,140.35,140.31,7.1274]
[1745204580477,30.94,140.36,140.3,9.24663284]
[1745204580677,30.94,140.36,140.32,0.04771524]
[1745204580983,38.0652,140.36,140.32,7.17451524]
[1745204581483,38.0652,140.36,140.33,7.1266]
[1745204581885,38.0652,140.36,140.32,0.04771524]
[1745204582086,38.0652,140.36,140.32,7.17461524]
[1745204583086,7.16489562,140.35,140.32,0.04771524]
[1745204583288,0.03929562,140.35,140.32,0.04771524]
[1745204584086,0.03929562,140.35,140.32,7.17471524]
[1745204584787,7.16489562,140.35,140.32,7.17471524]
[1745204584988,7.16489562,140.35,140.32,0.04771524]
[1745204586291,7.16489562,140.35,140.32,7.17481524]
[1745204586590,7.16489562,140.35,140.32,0.04771524]
[1745204589093,0.03929562,140.35,140.32,0.04771524]
[1745204590188,0.03929562,140.35,140.28,9.24663284]
[1745204590491,0.03929562,140.35,140.26,9.24663284]
[1745204590693,40.18663284,140.36,140.26,9.24663284]
[1745204590994,7.1276,140.31,140.27,7.1293]
[1745204591296,38.0476,140.31,140.28,5.91847139]
[1745204591595,0.04994278,140.3,140.28,5.96464381]
[1745204592194,0.04994278,140.3,140.28,13.09374381]
[1745204593295,0.04994278,140.3,140.29,7.1286]
[1745204594293,0.04994278,140.3,140.28,13.09354381]
[1745204594896,0.04994278,140.3,140.28,7.17507242]
[1745204595095,0.04994278,140.3,140.28,5.96464381]
[1745204595696,0.04994278,140.3,140.28,13.09374381]
[1745204596203,0.04994278,140.3,140.29,7.1286]
[1745204599000,30.92,140.34,140.31,7.1272]
[1745204599195,30.92,140.34,140.32,5.91847139]
[1745204599701,30.92,140.34,140.32,13.04547139]
[1745204600104,30.95706808,140.34,140.32,13.09488569]
[1745204601406,38.08326808,140.34,140.32,0.0494143]
[1745204601703,30.95706808,140.34,140.32,0.0494143]
[1745204602106,38.08336808,140.34,140.32,0.0494143]
[1745204603610,7.1266,140.33,140.32,0.0494143]
[1745204603908,30.95706808,140.34,140.32,0.0494143]
[1745204604209,38.08326808,140.34,140.32,0.0494143]
[1745204608721,30.95706808,140.34,140.32,0.0494143]
[1745204609022,30.95706808,140.34,140.32,5.96788569]
[1745204609323,30.95706808,140.34,140.32,13.09488569]
[1745204609622,30.95706808,140.34,140.32,5.96788569]
[1745204609824,30.95706808,140.34,140.33,7.1266]
[1745204610125,0.03706808,140.34,140.33,7.1266]
[1745204611421,30.14,140.37,140.36,7.1251]
[1745204611617,30.14,140.37,140.36,13.04357139]
[1745204611817,30.14,140.4,140.36,5.91847139]
[1745204612524,30.14,140.4,140.37,7.17504406]
[1745204612822,30.14,140.4,140.37,0.05084406]
[1745204614623,30.14,140.4,140.38,7.124]
[1745204615824,30.14,140.4,140.37,7.17514406]
[1745204616921,30.14,140.4,140.37,0.05084406]
[1745204617220,36.05847139,140.4,140.37,0.05084406]
[1745204617622,13.04247139,140.38,140.37,0.05084406]
[1745204617821,5.91847139,140.38,140.34,5.91847139]
[1745204618121,7.1247,140.37,140.34,5.91847139]
[1745204618623,13.04277139,140.38,140.34,13.04427139]
[1745204618924,0.04963152,140.37,140.35,0.04952813]
[1745204619124,0.04963152,140.37,140.33,5.91847139]
[1745204619422,0.04963152,140.37,140.35,0.04770224]
[1745204619623,7.17443152,140.37,140.33,13.04467139]
[1745204619824,7.17443152,140.37,140.35,0.04732202]
[1745204620826,30.14,140.36,140.35,0.04732202]
[1745204623929,30.14,140.36,140.35,7.17292202]
[1745204625131,0.04963152,140.37,140.36,7.1251]
[1745204629435,30.14,140.42,140.4,7.1226]
[1745204629731,30.14,140.42,140.4,13.04107139]
[1745204630033,30.14,140.42,140.4,5.91847139]
[1745204630533,30.14,140.42,140.4,5.97284784]
[1745204632434,30.14,140.42,140.41,7.1225]
[1745204632930,30.14,140.42,140.4,0.05437645]
[1745204633137,30.14,140.42,140.4,5.97284784]
[1745204633534,30.14,140.42,140.4,13.09554784]
[1745204633734,29.26,140.45,140.4,5.97284784]
[1745204634035,29.26,140.48,140.43,5.91847139]
[1745204634427,29.26,140.48,140.44,0.04742524]
[1745204634833,29.26,140.48,140.45,7.1202]
[1745204635331,29.26,140.48,140.45,13.03867139]
[1745204635640,29.26,140.48,140.46,7.1196]
[1745204635834,29.26,140.48,140.45,5.91847139]
[1745204636034,29.26,140.48,140.46,7.12]
[1745204636240,29.26,140.48,140.45,5.91847139]
[1745204636638,29.26,140.48,140.46,7.12]
[1745204638540,29.26,140.48,140.47,7.1195]
[1745204639835,564.24,140.52,140.47,7.1195]
[1745204640045,599.39847139,140.52,140.48,7.1187]
[1745204640236,599.39847139,140.52,140.48,0.05110597]
[1745204641141,599.39847139,140.52,140.48,7.16980597]
[1745204641332,606.51547139,140.52,140.48,7.16980597]
[1745204641538,599.39847139,140.52,140.48,0.05110597]
[1745204641740,5.91847139,140.5,140.48,0.05110597]
[1745204643041,7.1185,140.49,140.48,0.05110597]
[1745204645544,7.1201,140.46,140.43,5.91847139]
[1745204645739,5.91847139,140.47,140.42,5.91847139]
[1745204646343,7.1198,140.47,140.43,7.1212]
[1745204646738,35.15847139,140.48,140.38,1.9247]
[1745204646739,0.05103479,140.46,140.44,5.96341017]
[1745204646943,0.05103479,140.46,140.45,13.03897139]
[1745204648346,0.05103479,140.46,140.45,5.91847139]
[1745204648847,0.05103479,140.46,140.45,13.03897139]
[1745204650141,0.05103479,140.46,140.45,5.91847139]
[1745204650349,0.05103479,140.46,140.44,0.04556447]
[1745204650545,7.1205,140.45,140.44,0.04556447]
[1745204650847,36.3605,140.45,140.44,0.04556447]
[1745204651548,7.1215,140.44,140.4,5.91847139]
[1745204651949,5.91847139,140.44,140.4,5.91847139]
[1745204652644,5.91847139,140.44,140.39,13.04187139]
[1745204652949,7.17549044,140.43,140.41,0.05131452]
[1745204653351,0.05369044,140.43,140.41,0.05131452]
[1745204655648,7.17519044,140.43,140.41,0.05131452]
[1745204655851,0.05369044,140.43,140.41,0.05131452]
[1745204656851,0.05369044,140.43,140.41,5.6781184]
[1745204657154,29.24,140.49,140.41,5.6781184]
[1745204657351,29.24,140.49,140.46,5.62680388]
[1745204657551,29.24,140.49,140.44,5.62680388]
[1745204657751,34.86680388,140.49,140.44,5.62680388]
[1745204658256,7.1199,140.47,140.45,0.04539146]
[1745204658959,0.04290882,140.48,140.45,0.04539146]
[1745204659155,4.06660882,140.48,140.45,0.04539146]
[1745204659757,7.12,140.46,140.45,0.04539146]
[1745204660558,7.1197,140.47,140.45,0.04539146]
[1745204660957,4.06660882,140.48,140.45,0.04539146]
[1745204662453,0.04290882,140.48,140.46,5.62680388]
[1745204662961,0.04290882,140.48,140.47,7.1195]
[1745204663260,593.48,140.52,140.46,5.62680388]
[1745204663451,593.48,140.52,140.48,5.62680388]
[1745204663759,593.48,140.52,140.5,7.1178]
[1745204664062,593.48,140.52,140.5,12.74460388]
[1745204664362,593.48,140.52,140.5,5.67571852]
[1745204664963,593.48,140.52,140.51,7.1175]
[1745204665154,593.48,140.52,140.5,5.67571852]
[1745204665454,29.24,140.52,140.5,0.04891464]
[1745204665962,29.24,140.52,140.5,7.16651464]
[1745204667263,29.22,140.55,140.5,0.04891464]
[1745204667665,24.81952874,140.59,140.54,8.77943692]
[1745204667965,24.81952874,140.59,140.51,5.8445]
[1745204668166,7.1153,140.56,140.51,7.1171]
[1745204668363,7.1153,140.56,140.49,37.99943692]
[1745204668557,7.1153,140.56,140.49,29.22]
[1745204668760,31.2668,140.58,140.49,37.99943692]
[1745204669266,31.2668,140.58,140.53,7.1161]
[1745204669466,0.04513504,140.55,140.53,7.1161]
[1745204669662,0.04513504,140.55,140.52,0.04926262]
[1745204669869,7.16063504,140.55,140.52,0.04926262]
[1745204670169,0.04513504,140.55,140.52,0.04926262]
[1745204670372,0.04513504,140.55,140.52,7.16586262]
[1745204670767,0.04513504,140.55,140.52,0.04926262]
[1745204672068,29.22,140.54,140.52,0.04926262]
[1745204673069,0.04513504,140.55,140.52,0.04926262]
[1745204673768,0.04513504,140.55,140.52,7.16606262]
[1745204674169,0.04513504,140.55,140.52,0.04926262]
[1745204674469,0.04513504,140.55,140.52,7.16606262]
[1745204675274,0.04513504,140.55,140.53,7.1164]
[1745204675972,0.04513504,140.55,140.52,0.04926262]
[1745204678470,7.16083504,140.55,140.52,0.04926262]
[1745204678775,0.04513504,140.55,140.52,0.04926262]
[1745204680077,7.1164,140.54,140.52,0.04926262]
[1745204680278,29.22,140.53,140.52,0.04926262]
[1745204685783,29.22,140.53,140.46,8.77943692]
[1745204686083,29.22,140.53,140.45,8.77943692]
[1745204686888,0.04496783,140.5,140.48,0.05214199]
[1745204687285,0.04496783,140.5,140.49,5.61889509]
[1745204688289,0.04496783,140.5,140.49,12.73689509]
[1745204689793,0.04496783,140.5,140.49,5.61889509]
[1745204690493,0.04496783,140.5,140.48,7.17094199]
[1745204690999,0.04496783,140.5,140.49,7.1185]
[1745204692297,0.04496783,140.5,140.49,12.73739509]
[1745204692593,29.22,140.56,140.49,5.61889509]
[1745204692793,29.22,140.56,140.52,12.73569509]
[1745204693499,29.22,140.56,140.53,7.1164]
[1745204693799,29.27066695,140.56,140.53,7.16646039]
[1745204694302,5.61889509,140.55,140.41,361.0]
[1745204694501,5.61889509,140.53,140.42,5.8299]
[1745204694799,29.2,140.52,140.46,5.61889509]
[1745204695104,29.2,140.52,140.47,7.119]
[1745204695402,29.2,140.52,140.48,5.61889509]
[1745204695601,0.05162713,140.51,140.48,5.66374819]
[1745204695899,5.67052222,140.51,140.48,0.0448531]
[1745204696297,0.05162713,140.51,140.48,0.0448531]
[1745204697803,7.16912713,140.51,140.48,0.0448531]
[1745204698404,0.05162713,140.51,140.48,0.0448531]
[1745204700399,0.05162713,140.51,140.48,7.1633531]
[1745204700601,0.05162713,140.51,140.48,0.0448531]
[1745204701306,0.05162713,140.51,140.48,5.66573682]
[1745204701507,0.05162713,140.51,140.49,12.73728145]
[1745204703305,0.05162713,140.51,140.49,5.61918145]
[1745204704106,0.05162713,140.51,140.49,12.73758145]
[1745204704307,0.05162713,140.51,140.48,5.66403455]
[1745204704806,0.05162713,140.51,140.48,12.78263455]
[1745204705306,0.05162713,140.51,140.48,0.0448531]
[1745204705906,7.1185,140.49,140.48,0.0448531]
[1745204709408,12.73768145,140.49,140.48,0.0448531]
[1745204709608,5.61918145,140.49,140.43,5.61918145]
[1745204709908,29.2,140.48,140.43,5.61918145]
[1745204710107,5.61918145,140.47,140.4,5.61918145]
[1745204710510,7.1205,140.45,140.41,7.1222]
[1745204710809,12.78971721,140.45,140.42,0.04836279]
[1745204711313,7.17053576,140.45,140.42,0.04836279]
[1745204713316,7.17053576,140.45,140.42,7.17036279]
[1745204713518,7.1211,140.44,140.42,0.04836279]
[1745204714419,36.3211,140.44,140.42,0.04836279]
[1745204714918,7.1215,140.43,140.42,0.04836279]
[1745204715118,29.2,140.44,140.42,0.04836279]
[1745204716222,36.3211,140.44,140.42,0.04836279]
[1745204716521,29.2,140.44,140.42,0.04836279]
[1745204717624,29.2,140.44,140.42,7.17016279]
[1745204718115,29.2,140.44,140.42,0.04836279]
[1745204719417,5.61918145,140.43,140.39,7.1233]
[1745204720524,0.04488626,140.42,140.4,0.05020664]
[1745204721328,0.04488626,140.42,140.4,7.17320664]
[1745204726027,0.04488626,140.42,140.41,7.1225]
[1745204726234,5.61918145,140.47,140.41,5.61918145]
[1745204727028,5.61918145,140.46,140.39,5.61918145]
[1745204727329,0.05209677,140.44,140.41,0.0492758]
[1745204727632,0.05209677,140.44,140.41,5.66845725]
[1745204728228,5.61918145,140.42,140.36,5.61918145]
[1745204728434,5.61918145,140.42,140.35,5.61918145]
[1745204729436,0.0498066,140.4,140.37,0.04555505]
[1745204729636,0.0498066,140.4,140.39,7.1235]
[1745204730237,0.0498066,140.4,140.38,7.1239]
[1745204730437,0.0498066,140.4,140.37,0.04555505]
[1745204730733,0.0498066,140.4,140.38,7.124]
[1745204731041,0.0498066,140.4,140.37,0.04555505]
[1745204731336,0.0498066,140.4,140.39,7.1235]
[1745204734538,593.12,140.48,140.43,5.61918145]
[1745204735038,598.73918145,140.48,140.44,7.1207]
[1745204735238,593.12,140.48,140.44,7.1207]
[1745204735438,598.73918145,140.48,140.44,7.1207]
[1745204735639,0.05039411,140.47,140.45,0.0464917]
[1745204737037,0.05039411,140.47,140.45,7.1669917]
[1745204737535,0.05039411,140.47,140.46,7.12]
[1745204737838,0.05039411,140.47,140.46,12.73918145]
[1745204739245,0.05039411,140.47,140.46,7.12]
[1745204740445,0.05039411,140.47,140.45,7.1667917]
[1745204740841,0.05039411,140.47,140.45,0.0464917]
[1745204741738,0.05039411,140.47,140.41,7.1223]
[1745204741942,8.78333591,140.46,140.36,8.78333591]
[1745204742440,37.98333591,140.48,140.36,8.78333591]
[1745204742842,37.98333591,140.48,140.41,7.1221]
[1745204743037,37.98333591,140.48,140.41,7.17150139]
[1745204743239,0.05079112,140.46,140.41,0.04940139]
[1745204744044,0.05079112,140.46,140.44,7.1209]
[1745204744946,0.05079112,140.46,140.41,0.04940139]
[1745204745446,0.05079112,140.46,140.41,7.17160139]
[1745204746247,0.05079112,140.46,140.41,0.04940139]
[1745204747648,8.83412703,140.46,140.41,0.04940139]
[1745204747849,4.0521,140.45,140.41,0.04940139]
[1745204748049,29.2,140.44,140.41,0.04940139]
[1745204748644,31.2292,140.44,140.41,0.04940139]
[1745204748845,40.01253591,140.44,140.41,0.04940139]
[1745204749551,31.2292,140.44,140.41,0.04940139]
[1745204752645,31.2292,140.44,140.41,7.17170139]
[1745204753142,31.2292,140.44,140.41,0.04940139]
[1745204757855,31.2292,140.44,140.41,7.17170139]
[1745204758056,31.2292,140.44,140.41,0.04940139]
[1745204760261,564.05079112,140.46,140.41,8.8327373]
[1745204760659,564.05079112,140.46,140.45,7.1205]
[1745204760852,0.05079112,140.46,140.45,7.1205]
[1745204761358,0.05079112,140.46,140.45,12.74292245]
[1745204761760,0.05079112,140.46,140.45,7.1205]
[1745204763559,29.2,140.5,140.49,7.1185]
[1745204763859,593.32,140.53,140.47,8.78365238]
[1745204764562,593.32,140.53,140.49,0.05473965]
[1745204764764,29.2,140.53,140.49,0.05473965]
[1745204764953,0.04862637,140.52,140.49,0.05473965]
[1745204765154,24.81952874,140.55,140.51,8.78365238]
[1745204765358,24.81952874,140.55,140.53,8.78365238]
[1745204765654,29.18,140.57,140.56,7.1149]
[1745204766864,29.18,140.57,140.55,7.16926507]
[1745204767663,29.18,140.57,140.56,7.1149]
[1745204770467,0.05134956,140.58,140.57,7.1144]
[1745204770869,29.18,140.64,140.57,8.78365238]
[1745204771367,15.54,140.63,140.57,8.78365238]
[1745204771769,15.54,140.63,140.62,7.1115]
[1745204773669,15.54,140.63,140.59,8.83561916]
[1745204773670,29.22690372,140.64,140.63,7.1114]
[1745204773872,0.04690372,140.64,140.63,7.1114]
[1745204774774,0.04690372,140.64,140.62,0.0494365]
[1745204776269,0.04690372,140.64,140.63,7.1114]
[1745204777164,0.04690372,140.64,140.62,0.0494365]
[1745204777366,30.4,140.63,140.62,0.0494365]
[1745204777773,30.4,140.63,140.57,5.7901]
[1745204778072,30.4,140.63,140.53,8.78365238]
[1745204778279,14.89205238,140.62,140.57,7.1141]
[1745204778773,8.78365238,140.6,140.54,7.1155]
[1745204779070,0.04850615,140.61,140.58,0.05241035]
[1745204779374,4.0359,140.62,140.52,8.78365238]
[1745204779575,0.04907139,140.61,140.58,0.04862999]
[1745204779874,0.04907139,140.61,140.58,7.16212999]
[1745204780375,0.04907139,140.61,140.58,0.04862999]
[1745204780677,8.78365238,140.6,140.58,0.04862999]
[1745204780876,30.4,140.59,140.53,7.1161]
[1745204781076,30.4,140.59,140.5,14.63575238]
[1745204781977,0.05440333,140.56,140.53,0.05176965]
[1745204782477,0.05440333,140.56,140.55,7.1154]
[1745204783282,0.05440333,140.56,140.54,7.1158]
[1745204783778,0.05440333,140.56,140.53,0.05176965]
[1745204783978,30.4,140.55,140.53,7.16816965]
[1745204785974,30.4,140.55,140.53,0.05176965]
[1745204786981,37.5156,140.55,140.53,0.05176965]
[1745204787182,30.4,140.55,140.53,0.05176965]
[1745204789278,37.5155,140.55,140.53,0.05176965]
[1745204789481,30.4,140.55,140.53,0.05176965]
[1745204790282,30.4,140.55,140.49,7.1183]
[1745204790783,7.1159,140.54,140.49,7.1183]
[1745204790982,8.78365238,140.54,140.48,7.1188]
[1745204791183,10.83085238,140.54,140.45,3.912]
[1745204791482,0.04664815,140.51,140.48,0.04748847]
[1745204791682,30.44664815,140.51,140.48,0.04748847]
[1745204793387,30.44664815,140.51,140.49,7.1184]
[1745204795990,0.04664815,140.51,140.48,0.04748847]
[1745204796193,0.04664815,140.51,140.5,7.118]
[1745204797091,0.04664815,140.51,140.48,8.83114085]
[1745204797092,0.04664815,140.51,140.49,7.1183]
[1745204797790,0.04664815,140.51,140.48,0.04748847]
[1745204798091,30.46664815,140.51,140.48,7.16628847]
[1745204798291,30.46664815,140.51,140.48,0.04748847]
[1745204798492,30.46664815,140.51,140.49,7.1184]
[1745204798896,30.46664815,140.51,140.48,0.04748847]
[1745204799291,30.46664815,140.51,140.4,572.30365238]
[1745204799491,30.46664815,140.51,140.4,8.78365238]
[1745204799492,30.42,140.51,140.4,8.78365238]
[1745204799692,7.1184,140.5,140.4,8.78365238]
[1745204799892,30.42,140.51,140.4,8.78365238]
[1745204800494,0.0545496,140.47,140.44,0.0523015]
[1745204800687,30.4745496,140.47,140.44,0.0523015]
[1745204801397,37.5944496,140.47,140.44,0.0523015]
[1745204802091,7.1201,140.46,140.44,0.0523015]
[1745204802297,30.4745496,140.47,140.44,0.0523015]
[1745204802693,37.5942496,140.47,140.44,0.0523015]
[1745204802895,30.4745496,140.47,140.44,0.0523015]
[1745204803196,7.1204,140.46,140.44,0.0523015]
[1745204803397,30.4745496,140.47,140.44,0.0523015]
[1745204803398,36.3497496,140.47,140.44,0.0523015]
[1745204803698,8.78365238,140.46,140.38,5.9296]
[1745204803897,7.1208,140.45,140.39,7.1235]
[1745204804698,0.05258813,140.43,140.41,0.04899951]
[1745204804900,30.47258813,140.43,140.34,8.78365238]
[1745204805092,30.42,140.43,140.34,14.71465238]
[1745204805598,37.5419,140.43,140.34,14.71465238]
[1745204805796,30.42,140.43,140.34,14.71465238]
[1745204806001,30.42,140.43,140.34,5.931]
[1745204806203,0.0509564,140.4,140.37,0.04896819]
[1745204806397,30.42,140.39,140.37,0.04896819]
[1745204808299,37.5435,140.39,140.37,0.04896819]
[1745204808601,30.42,140.39,140.37,0.04896819]
[1745204809100,30.42,140.39,140.31,6.0027]
[1745204810101,7.1244,140.38,140.32,7.127]
[1745204810302,0.04949458,140.36,140.34,0.04707366]
[1745204810502,38.5259,140.35,140.29,7.1283]
[1745204810898,38.5259,140.35,140.27,42.22165238]
[1745204811404,14.28,140.34,140.27,42.22165238]
[1745204811701,0.04799269,140.32,140.3,0.05299134]
[1745204812303,0.04799269,140.32,140.31,7.1276]
[1745204812504,0.04799269,140.32,140.3,0.05299134]
[1745204813303,0.04799269,140.32,140.3,7.18089134]
[1745204813498,0.04799269,140.32,140.3,0.05299134]
[1745204814309,0.04799269,140.32,140.3,7.18069134]
[1745204814605,0.04799269,140.32,140.3,0.05299134]
[1745204815205,0.04799269,140.32,140.31,7.1276]
[1745204815401,42.0,140.34,140.31,8.78365238]
[1745204815706,24.6049,140.34,140.33,8.78365238]
[1745204815906,21.4903,140.34,140.33,8.78365238]
[1745204816207,21.4903,140.34,140.33,15.91025238]
[1745204816507,7.1231,140.4,140.33,15.91025238]
[1745204816508,0.05470892,140.35,140.33,8.78365238]
[1745204817007,0.05470892,140.35,140.34,7.1261]
[1745204817208,35.4259,140.41,140.35,8.78365238]
[1745204817606,31.42,140.41,140.35,8.78365238]
[1745204818205,31.42,140.41,140.38,7.1237]
[1745204818709,31.47357611,140.41,140.38,7.1237]
[1745204819412,38.59617611,140.41,140.37,7.17832322]
[1745204819710,31.47357611,140.41,140.37,0.05392322]
[1745204820009,31.47357611,140.41,140.38,7.1237]
[1745204820211,40.25722849,140.41,140.28,361.0]
[1745204820406,7.124,140.39,140.33,7.1262]
[1745204820805,42.26005238,140.41,140.3,10.71175238]
[1745204821012,7.1235,140.4,140.34,7.1259]
[1745204821414,0.04498478,140.38,140.36,0.05038748]
[1745204821813,31.42,140.37,140.36,0.05038748]
[1745204823817,31.42,140.37,140.28,8.78365238]
[1745204824416,38.5449,140.37,140.28,8.78365238]
[1745204825016,0.05410152,140.34,140.31,7.1273]
[1745204825516,0.05410152,140.34,140.31,7.17461498]
[1745204826018,0.05410152,140.34,140.32,7.127]
[1745204826513,0.05410152,140.34,140.33,7.1266]